fUST/lending_fUST_20250404
["ID","MTS","AMOUNT","RATE_DAILY","PERIOD"]
[357094359,1743726632542,-536.65,0.00014042,2]
[357094360,1743726632551,-500.0,0.00014042,2]
[357094361,1743726632561,-500.0,0.00014042,2]
[357094362,1743726632571,-500.0,0.00014042,2]
[357094363,1743726632580,-500.0,0.00014042,2]
[357094364,1743726632590,-500.0,0.00014042,2]
[357094365,1743726632601,-500.0,0.00014042,2]
[357094366,1743726632611,-289.62,0.00014042,2]
[357094367,1743726632625,-500.0,0.00014042,2]
[357094368,1743726632635,-500.0,0.00014042,2]
[357094369,1743726632646,-500.0,0.00014042,2]
[357094370,1743726632656,-502.58306749,0.00014042,2]
[357094371,1743726632666,-500.0,0.00014042,2]
[357094372,1743726632675,-608.1512857,0.00014042,2]
[357094373,1743726632684,-459.5626864,0.00014042,2]
[357094374,1743726632694,-500.0,0.00014042,2]
[357094375,1743726632704,-500.0,0.00014042,2]
[357094376,1743726632714,-500.0,0.00014042,2]
[357094377,1743726632723,-500.0,0.00014042,2]
[357094378,1743726632733,-500.0,0.00014042,2]
[357094379,1743726632743,-500.0,0.00014042,2]
[357094380,1743726632754,-500.0,0.00014042,2]
[357094381,1743726632763,-540.6558624,0.00014042,2]
[357094382,1743726632773,-500.0,0.00014042,2]
[357094383,1743726632784,-500.0,0.00014042,2]
[357094384,1743726632794,-500.0,0.00014042,2]
[357094385,1743726632803,-500.0,0.00014042,2]
[357094386,1743726632812,-500.0,0.00014042,2]
[357094387,1743726632822,-500.0,0.00014042,2]
[357094388,1743726632831,-500.0,0.00014042,2]
[357094389,1743726632841,-500.0,0.00014042,2]
[357094390,1743726632852,-507.44,0.00014043,2]
[357094391,1743726632861,-500.0,0.00014043,2]
[357094392,1743726633051,-500.0,0.00014043,2]
[357094393,1743726633064,-500.0,0.00014044,2]
[357094394,1743726633075,-503.74038843,0.00014044,2]
[357094395,1743726633085,-553.8,0.00014314,2]
[357094396,1743726633095,-500.0,0.00014314,2]
[357094397,1743726633106,-500.0,0.00014314,2]
[357094398,1743726633116,-500.0,0.00014314,2]
[357094399,1743726633125,-500.0,0.00014314,2]
[357094400,1743726633138,-468.94049848,0.00014314,2]
[357094401,1743726633148,-500.0,0.00014314,2]
[357094402,1743726633158,-500.0,0.00014315,2]
[357094403,1743726633168,-544.41,0.00014315,2]
[357094404,1743726633179,-151.0,0.00014315,2]
[357094405,1743726633188,-151.0,0.00014315,2]
[357094406,1743726633198,-151.0,0.00014315,2]
[357094407,1743726633208,-385.945267,0.00014315,2]
[357094408,1743726633220,-385.945267,0.00014315,2]
[357094409,1743726633231,-500.0,0.00014315,2]
[357094410,1743726633240,-500.0,0.00014315,2]
[357094411,1743726633250,-500.0,0.00014315,2]
[357094412,1743726633259,-724.26,0.00014315,2]
[357094413,1743726633269,-500.0,0.00014315,2]
[357094414,1743726633278,-500.0,0.00014315,2]
[357094415,1743726633288,-816.88,0.00014315,2]
[357094416,1743726633297,-377.09,0.00014315,2]
[357094417,1743726633308,-762.72,0.00014315,2]
[357094418,1743726633317,-500.0,0.00014315,2]
[357094419,1743726633327,-151.0,0.00014315,2]
[357094420,1743726633337,-500.0,0.00014315,2]
[357094421,1743726633347,-151.0,0.00014315,2]
[357094422,1743726633356,-151.0,0.00014315,2]
[357094423,1743726633366,-500.0,0.00014315,2]
[357094424,1743726633376,-151.0,0.00014315,2]
[357094425,1743726633386,-277.49,0.00014315,2]
[357094426,1743726633396,-536.37,0.00014315,2]
[357094427,1743726633405,-500.0,0.00014315,2]
[357094428,1743726633415,-638.71,0.00014315,2]
[357094429,1743726633424,-500.0,0.00014315,2]
[357094430,1743726633434,-151.0,0.00014315,2]
[357094431,1743726633443,-500.0,0.00014315,2]
[357094432,1743726633453,-151.0,0.00014315,2]
[357094433,1743726633463,-151.0,0.00014315,2]
[357094434,1743726633473,-472.310373,0.00014315,2]
[357094435,1743726633483,-151.0,0.00014315,2]
[357094436,1743726633492,-151.0,0.00014315,2]
[357094437,1743726633502,-472.310373,0.00014315,2]
[357094438,1743726633512,-151.0,0.00014315,2]
[357094439,1743726633521,-151.0,0.00014315,2]
[357094440,1743726633531,-151.0,0.00014315,2]
[357094441,1743726633541,-198.98114,0.00014315,2]
[357094442,1743726633550,-198.98114,0.00014315,2]
[357094443,1743726633560,-2372.598302,0.00014315,2]
[357094444,1743726633569,-2372.598302,0.00014315,2]
[357094445,1743726633578,-22863.0,0.00014315,2]
[357094446,1743726633587,-500.0,0.00014316,2]
[357094447,1743726633596,-151.0,0.00014316,2]
[357094448,1743726633607,-500.0,0.00014316,2]
[357094449,1743726633617,-151.0,0.00014316,2]
[357094450,1743726633628,-217.64,0.00014316,2]
[357094451,1743726633637,-151.0,0.00014316,2]
[357094452,1743726633647,-151.0,0.00014316,2]
[357094453,1743726633655,-151.0,0.00014316,2]
[357094454,1743726633665,-385.945267,0.00014316,2]
[357094455,1743726633674,-385.945267,0.00014316,2]
[357094456,1743726633684,-290.29,0.00014316,2]
[357094457,1743726633693,-635.52,0.00014316,2]
[357094458,1743726633703,-500.0,0.00014316,2]
[357094459,1743726633712,-500.0,0.00014316,2]
[357094460,1743726633722,-500.0,0.00014316,2]
[357094461,1743726633731,-500.0,0.00014316,2]
[357094462,1743726633741,-500.0,0.00014316,2]
[357094463,1743726633750,-500.0,0.00014316,2]
[357094464,1743726633759,-500.0,0.00014316,2]
[357094465,1743726633769,-202.15433688,0.00014316,2]
[357094466,1743726633778,-500.0,0.00014316,2]
[357094467,1743726633787,-500.0,0.00014316,2]
[357094468,1743726633797,-151.0,0.00014316,2]
[357094469,1743726633806,-151.0,0.00014316,2]
[357094470,1743726633815,-151.0,0.00014316,2]
[357094471,1743726633825,-151.0,0.00014316,2]
[357094472,1743726633834,-151.0,0.00014316,2]
[357094473,1743726633844,-500.0,0.00014316,2]
[357094474,1743726633854,-151.0,0.00014316,2]
[357094475,1743726633863,-151.0,0.00014316,2]
[357094476,1743726633873,-198.98114,0.00014316,2]
[357094477,1743726633882,-198.98114,0.00014316,2]
[357094478,1743726633892,-2372.598302,0.00014316,2]
[357094479,1743726633901,-2372.598302,0.00014316,2]
[357094480,1743726633910,-151.0,0.00014317,2]
[357094481,1743726633920,-151.0,0.00014317,2]
[357094482,1743726633930,-238.75,0.00014317,2]
[357094483,1743726633939,-151.0,0.00014317,2]
[357094484,1743726633949,-151.0,0.00014317,2]
[357094485,1743726633959,-151.0,0.00014317,2]
[357094486,1743726633968,-151.0,0.00014317,2]
[357094487,1743726633978,-192.0,0.00014317,2]
[357094488,1743726633987,-192.0,0.00014317,2]
[357094489,1743726633997,-151.0,0.00014317,2]
[357094490,1743726634007,-151.0,0.00014317,2]
[357094491,1743726634016,-151.0,0.00014317,2]
[357094492,1743726634026,-151.0,0.00014317,2]
[357094493,1743726634036,-385.945267,0.00014317,2]
[357094494,1743726634046,-385.945267,0.00014317,2]
[357094495,1743726634056,-151.0,0.00014317,2]
[357094496,1743726634065,-151.0,0.00014317,2]
[357094497,1743726634075,-151.0,0.00014317,2]
[357094498,1743726634085,-250.380417,0.00014317,2]
[357094499,1743726634094,-151.0,0.00014317,2]
[357094500,1743726634104,-151.0,0.00014317,2]
[357094501,1743726634114,-269.552648,0.00014317,2]
[357094502,1743726634124,-472.310373,0.00014317,2]
[357094503,1743726634135,-236.826444,0.00014317,2]
[357094504,1743726634146,-161.00184893,0.00014317,2]
[357094505,1743726634155,-472.310373,0.00014317,2]
[357094506,1743726634165,-151.0,0.00014317,2]
[357094507,1743726634175,-153.628438,0.00014317,2]
[357094508,1743726634184,-151.0,0.00014317,2]
[357094509,1743726634194,-198.98114,0.00014317,2]
[357094510,1743726634204,-198.98114,0.00014317,2]
[357094511,1743726634215,-2372.598302,0.00014317,2]
[357094512,1743726634224,-2372.598302,0.00014317,2]
[357094513,1743726634234,-520.56,0.00014318,2]
[357094514,1743726634243,-192.0,0.00014318,2]
[357094515,1743726634253,-192.0,0.00014318,2]
[357094516,1743726634263,-151.0,0.00014318,2]
[357094517,1743726634272,-840.57354155,0.0001442,2]
[357094518,1743726634282,-151.0,0.0001442,2]
[357094519,1743726634291,-151.0,0.0001442,2]
[357094520,1743726634300,-151.0,0.0001442,2]
[357094521,1743726634310,-472.310373,0.0001442,2]
[357094522,1743726634319,-472.310373,0.0001442,2]
[357094523,1743726634329,-553.8,0.00014588,2]
[357094524,1743726634338,-500.0,0.00014588,2]
[357094525,1743726634348,-500.0,0.00014588,2]
[357094526,1743726634358,-500.0,0.00014588,2]
[357094527,1743726634367,-151.0,0.00014589,2]
[357094528,1743726634377,-151.0,0.00014589,2]
[357094529,1743726634386,-151.0,0.00014589,2]
[357094530,1743726634395,-500.0,0.00014589,2]
[357094531,1743726634405,-151.0,0.00014589,2]
[357094532,1743726634416,-544.41,0.00014589,2]
[357094533,1743726634430,-151.0,0.00014589,2]
[357094534,1743726634444,-385.945267,0.00014589,2]
[357094535,1743726634456,-385.945267,0.00014589,2]
[357094536,1743726634467,-500.0,0.00014589,2]
[357094537,1743726634478,-500.0,0.00014589,2]
[357094538,1743726634489,-500.0,0.00014589,2]
[357094539,1743726634502,-724.26,0.00014589,2]
[357094540,1743726634514,-500.0,0.00014589,2]
[357094541,1743726634526,-500.0,0.00014589,2]
[357094542,1743726634538,-816.88,0.00014589,2]
[357094543,1743726634550,-762.72,0.00014589,2]
[357094544,1743726634561,-500.0,0.00014589,2]
[357094545,1743726634573,-151.0,0.00014589,2]
[357094546,1743726634586,-500.0,0.00014589,2]
[357094547,1743726634597,-151.0,0.00014589,2]
[357094548,1743726634609,-151.0,0.00014589,2]
[357094549,1743726634620,-500.0,0.00014589,2]
[357094550,1743726634630,-536.37,0.00014589,2]
[357094551,1743726634640,-500.0,0.00014589,2]
[357094552,1743726634650,-500.0,0.00014589,2]
[357094553,1743726634661,-500.0,0.00014589,2]
[357094554,1743726634673,-151.0,0.00014589,2]
[357094555,1743726634684,-151.0,0.00014589,2]
[357094556,1743726634695,-472.310373,0.00014589,2]
[357094557,1743726634707,-472.310373,0.00014589,2]
[357094558,1743726634718,-151.0,0.00014589,2]
[357094559,1743726634730,-198.98114,0.00014589,2]
[357094560,1743726634742,-198.98114,0.00014589,2]
[357094561,1743726634754,-2372.598302,0.00014589,2]
[357094562,1743726634765,-2372.598302,0.00014589,2]
[357094563,1743726634777,-22863.0,0.00014589,2]
[357094564,1743726634789,-168.328121,0.0001459,2]
[357094565,1743726634800,-500.0,0.0001459,2]
[357094566,1743726634811,-192.0,0.0001459,2]
[357094567,1743726634824,-192.0,0.0001459,2]
[357094568,1743726634835,-151.0,0.0001459,2]
[357094569,1743726634847,-180.76,0.0001459,2]
[357094570,1743726634859,-151.0,0.0001459,2]
[357094571,1743726634872,-213.739016,0.0001459,2]
[357094572,1743726634884,-151.0,0.0001459,2]
[357094573,1743726634895,-385.945267,0.0001459,2]
[357094574,1743726634905,-385.945267,0.0001459,2]
[357094575,1743726634917,-500.0,0.0001459,2]
[357094576,1743726634928,-500.0,0.0001459,2]
[357094577,1743726634940,-155.3,0.0001459,2]
[357094578,1743726634951,-151.0,0.0001459,2]
[357094579,1743726634963,-151.0,0.0001459,2]
[357094580,1743726634975,-293.97,0.0001459,2]
[357094581,1743726634985,-151.0,0.0001459,2]
[357094582,1743726634996,-198.98114,0.0001459,2]
[357094583,1743726635007,-198.98114,0.0001459,2]
[357094584,1743726635017,-2372.598302,0.0001459,2]
[357094585,1743726635027,-2372.598302,0.0001459,2]
[357094586,1743726635038,-151.0,0.00014591,2]
[357094587,1743726635049,-151.0,0.00014591,2]
[357094588,1743726635061,-151.0,0.00014591,2]
[357094589,1743726635074,-151.0,0.00014591,2]
[357094590,1743726635087,-192.0,0.00014591,2]
[357094591,1743726635099,-192.0,0.00014591,2]
[357094592,1743726635110,-151.0,0.00014591,2]
[357094593,1743726635121,-151.0,0.00014591,2]
[357094594,1743726635131,-166.111301,0.00014591,2]
[357094595,1743726635147,-385.945267,0.00014591,2]
[357094596,1743726635158,-385.945267,0.00014591,2]
[357094597,1743726635168,-151.0,0.00014591,2]
[357094598,1743726635179,-151.0,0.00014591,2]
[357094599,1743726635192,-151.0,0.00014591,2]
[357094600,1743726635203,-472.310373,0.00014591,2]
[357094601,1743726635213,-472.310373,0.00014591,2]
[357094602,1743726635224,-500.0,0.00014862,2]
[357094603,1743726635235,-177.14689471,0.00014862,2]
[357094604,1743726635245,-500.0,0.00014862,2]
[357094605,1743726635257,-231.72506909,0.00014862,2]
[357094606,1743726635268,-553.8,0.00014862,2]
[357094607,1743726635279,-500.0,0.00014862,2]
[357094608,1743726635290,-500.0,0.00014862,2]
[357094609,1743726635301,-151.0,0.00014862,2]
[357094610,1743726635311,-198.98114,0.00014862,2]
[357094611,1743726635322,-198.98114,0.00014862,2]
[357094612,1743726635334,-500.0,0.00014862,2]
[357094613,1743726635345,-2372.598302,0.00014862,2]
[357094614,1743726635359,-2372.598302,0.00014862,2]
[357094615,1743726635370,-500.0,0.00014863,2]
[357094616,1743726635382,-544.41,0.00014863,2]
[357094617,1743726635392,-500.0,0.00014863,2]
[357094618,1743726635402,-500.0,0.00014863,2]
[357094619,1743726635413,-153.54,0.00014863,2]
[357094620,1743726635424,-724.26,0.00014863,2]
[357094621,1743726635435,-500.0,0.00014863,2]
[357094622,1743726635446,-500.0,0.00014863,2]
[357094623,1743726635457,-816.88,0.00014863,2]
[357094624,1743726635468,-762.72,0.00014863,2]
[357094625,1743726635480,-500.0,0.00014863,2]
[357094626,1743726635491,-151.0,0.00014863,2]
[357094627,1743726635502,-500.0,0.00014863,2]
[357094628,1743726635515,-151.0,0.00014863,2]
[357094629,1743726635526,-151.0,0.00014863,2]
[357094630,1743726635538,-500.0,0.00014863,2]
[357094631,1743726635549,-536.37,0.00014863,2]
[357094632,1743726635560,-500.0,0.00014863,2]
[357094633,1743726635572,-500.0,0.00014863,2]
[357094634,1743726635583,-500.0,0.00014863,2]
[357094635,1743726635594,-151.0,0.00014863,2]
[357094636,1743726635608,-151.0,0.00014863,2]
[357094637,1743726635619,-151.0,0.00014863,2]
[357094638,1743726635631,-151.0,0.00014863,2]
[357094639,1743726635642,-472.310373,0.00014863,2]
[357094640,1743726635654,-472.310373,0.00014863,2]
[357094641,1743726635666,-231.6,0.00014863,2]
[357094642,1743726635677,-198.98114,0.00014863,2]
[357094643,1743726635688,-198.98114,0.00014863,2]
[357094644,1743726635700,-2372.598302,0.00014863,2]
[357094645,1743726635711,-2372.598302,0.00014863,2]
[357094646,1743726635722,-500.0,0.00014864,2]
[357094647,1743726635734,-192.0,0.00014864,2]
[357094648,1743726635745,-192.0,0.00014864,2]
[357094649,1743726635756,-272.637113,0.00014864,2]
[357094650,1743726635767,-151.0,0.00014864,2]
[357094651,1743726635778,-385.945267,0.00014864,2]
[357094652,1743726635789,-385.945267,0.00014864,2]
[357094653,1743726635800,-500.0,0.00014864,2]
[357094654,1743726635811,-500.0,0.00014864,2]
[357094655,1743726635822,-198.98114,0.00014864,2]
[357094656,1743726635833,-198.98114,0.00014864,2]
[357094657,1743726635844,-2372.598302,0.00014864,2]
[357094658,1743726635859,-2372.598302,0.00014864,2]
[357094659,1743726635870,-151.0,0.00014865,2]
[357094660,1743726635881,-295.008816,0.00014865,2]
[357094661,1743726635892,-151.0,0.00014865,2]
[357094662,1743726635903,-192.0,0.00014865,2]
[357094663,1743726635916,-192.0,0.00014865,2]
[357094664,1743726635927,-151.0,0.00014865,2]
[357094665,1743726635938,-385.945267,0.00014865,2]
[357094666,1743726635949,-385.945267,0.00014865,2]
[357094667,1743726635960,-163.724108,0.00014865,2]
[357094668,1743726635971,-204.8553,0.00014865,2]
[357094669,1743726636136,-151.0,0.00014865,2]
[357094670,1743726636148,-151.0,0.00014865,2]
[357094671,1743726636159,-151.0,0.00014865,2]
[357094672,1743726636169,-472.310373,0.00014865,2]
[357094673,1743726636179,-472.310373,0.00014865,2]
[357094674,1743726636188,-500.0,0.00015002,2]
[357094675,1743726636197,-500.0,0.00015034,2]
[357094676,1743726636208,-501.17725434,0.00015034,2]
[357094677,1743726636218,-500.0,0.00015034,2]
[357094678,1743726636228,-500.0,0.00015034,2]
[357094679,1743726636237,-500.0,0.00015034,2]
[357094680,1743726636247,-500.0,0.00015034,2]
[357094681,1743726636257,-500.0,0.00015034,2]
[357094682,1743726636267,-354.75576822,0.00015034,2]
[357094683,1743726636276,-500.0,0.00015034,2]
[357094684,1743726636286,-500.0,0.00015034,2]
[357094685,1743726636295,-500.0,0.00015034,2]
[357094686,1743726636305,-500.0,0.00015034,2]
[357094687,1743726636314,-500.0,0.00015034,2]
[357094688,1743726636323,-500.0,0.00015034,2]
[357094689,1743726636333,-500.0,0.00015034,2]
[357094690,1743726636342,-500.0,0.00015034,2]
[357094691,1743726636353,-500.0,0.00015034,2]
[357094692,1743726636363,-198.98114,0.00015059,2]
[357094693,1743726636372,-198.98114,0.00015059,2]
[357094694,1743726636381,-2372.598302,0.00015059,2]
[357094695,1743726636391,-2372.598302,0.00015059,2]
[357094696,1743726636401,-500.0,0.0001506,2]
[357094697,1743726636410,-500.0,0.0001506,2]
[357094698,1743726636420,-500.0,0.0001506,2]
[357094699,1743726636430,-500.0,0.0001506,2]
[357094700,1743726636439,-500.0,0.0001506,2]
[357094701,1743726636449,-598.09930283,0.00015107,2]
[357094702,1743726636459,-553.8,0.00015136,2]
[357094703,1743726636469,-500.0,0.00015136,2]
[357094704,1743726636479,-500.0,0.00015136,2]
[357094705,1743726636489,-500.0,0.00015136,2]
[357094706,1743726636498,-544.41,0.00015137,2]
[357094707,1743726636508,-500.0,0.00015137,2]
[357094708,1743726636517,-500.0,0.00015137,2]
[357094709,1743726636527,-724.26,0.00015137,2]
[357094710,1743726636537,-500.0,0.00015137,2]
[357094711,1743726636547,-500.0,0.00015137,2]
[357094712,1743726636557,-816.88,0.00015137,2]
[357094713,1743726636567,-762.72,0.00015137,2]
[357094714,1743726636576,-500.0,0.00015137,2]
[357094715,1743726636586,-500.0,0.00015137,2]
[357094716,1743726636596,-151.0,0.00015137,2]
[357094717,1743726636607,-500.0,0.00015137,2]
[357094718,1743726636617,-536.37,0.00015137,2]
[357094719,1743726636627,-500.0,0.00015137,2]
[357094720,1743726636637,-500.0,0.00015137,2]
[357094721,1743726636647,-302.7986642,0.00015137,2]
[357094722,1743726636656,-151.0,0.00015137,2]
[357094723,1743726636666,-205.036188,0.00015137,2]
[357094724,1743726636676,-151.0,0.00015137,2]
[357094725,1743726636685,-151.0,0.00015137,2]
[357094726,1743726636695,-472.310373,0.00015137,2]
[357094727,1743726636706,-472.310373,0.00015137,2]
[357094728,1743726636715,-198.98114,0.00015137,2]
[357094729,1743726636725,-198.981144,0.00015137,2]
[357094730,1743726636735,-2372.598302,0.00015137,2]
[357094731,1743726636745,-2372.598302,0.00015137,2]
[357094732,1743726636754,-500.0,0.00015138,2]
[357094733,1743726636764,-192.0,0.00015138,2]
[357094734,1743726636774,-192.0,0.00015138,2]
[357094735,1743726636783,-151.0,0.00015138,2]
[357094736,1743726636793,-385.945267,0.00015138,2]
[357094737,1743726636802,-385.945267,0.00015138,2]
[357094738,1743726636812,-500.0,0.00015138,2]
[357094739,1743726636821,-500.0,0.00015138,2]
[357094740,1743726636831,-192.0,0.00015139,2]
[357094741,1743726636840,-192.0,0.00015139,2]
[357094742,1743726636851,-151.0,0.00015139,2]
[357094743,1743726636861,-500.0,0.00015167,2]
[357094744,1743726636871,-500.0,0.00015167,2]
[357094745,1743726636881,-500.0,0.00015191,2]
[357094746,1743726636891,-385.945267,0.00015191,2]
[357094747,1743726636900,-385.945266,0.00015191,2]
[357094748,1743726636910,-151.0,0.00015191,2]
[357094749,1743726636920,-472.310373,0.00015191,2]
[357094750,1743726636929,-472.310373,0.00015191,2]
[357094751,1743726636939,-500.0,0.00015193,2]
[357094752,1743726636949,-500.0,0.00015193,2]
[357094753,1743726636959,-500.0,0.00015205,2]
[357094754,1743726636969,-192.0,0.0001526,2]
[357094755,1743726636979,-192.0,0.0001526,2]
[357094756,1743726636989,-321.70823791,0.000153,2]
[357094757,1743726636999,-158.00285932,0.00015307,2]
[357094758,1743726637008,-500.0,0.00015337,2]
[357094759,1743726637018,-400.0,0.00015342,2]
[357094760,1743726637027,-553.8,0.0001541,2]
[357094761,1743726637037,-500.0,0.0001541,2]
[357094762,1743726637047,-500.0,0.0001541,2]
[357094763,1743726637057,-500.0,0.0001541,2]
[357094764,1743726637066,-160.0,0.0001541,2]
[357094765,1743726637076,-151.0,0.00015411,2]
[357094766,1743726637086,-544.41,0.00015411,2]
[357094767,1743726637096,-500.0,0.00015411,2]
[357094768,1743726637107,-500.0,0.00015411,2]
[357094769,1743726637116,-724.26,0.00015411,2]
[357094770,1743726637126,-500.0,0.00015411,2]
[357094771,1743726637139,-816.88,0.00015411,2]
[357094772,1743726637148,-762.72,0.00015411,2]
[357094773,1743726637157,-500.0,0.00015411,2]
[357094774,1743726637167,-500.0,0.00015411,2]
[357094775,1743726637179,-441.08,0.00015411,2]
[357094776,1743726637189,-151.0,0.00015411,2]
[357094777,1743726637198,-536.37,0.00015411,2]
[357094778,1743726637207,-205.26660778,0.00015411,2]
[357094779,1743726637218,-500.0,0.00015411,2]
[357094780,1743726637228,-472.310373,0.00015411,2]
[357094781,1743726637239,-472.310376,0.00015411,2]
[357094782,1743726637250,-500.0,0.00015412,2]
[357094783,1743726637259,-192.0,0.00015412,2]
[357094784,1743726637269,-192.0,0.00015412,2]
[357094785,1743726637279,-500.0,0.00015412,2]
[357094786,1743726637289,-500.0,0.00015412,2]
[357094787,1743726637298,-553.8,0.00015684,2]
[357094788,1743726637308,-500.0,0.00015684,2]
[357094789,1743726637318,-500.0,0.00015684,2]
[357094790,1743726637328,-500.0,0.00015684,2]
[357094791,1743726637337,-544.41,0.00015685,2]
[357094792,1743726637347,-500.0,0.00015685,2]
[357094793,1743726637356,-500.0,0.00015685,2]
[357094794,1743726637366,-724.26,0.00015685,2]
[357094795,1743726637375,-500.0,0.00015685,2]
[357094796,1743726637385,-816.88,0.00015685,2]
[357094797,1743726637395,-762.72,0.00015685,2]
[357094798,1743726637404,-500.0,0.00015685,2]
[357094799,1743726637414,-500.0,0.00015685,2]
[357094800,1743726637424,-536.37,0.00015685,2]
[357094801,1743726637434,-500.0,0.00015685,2]
[357094802,1743726637443,-500.0,0.00015686,2]
[357094803,1743726637453,-500.0,0.00015686,2]
[357094804,1743726637463,-800.0,0.0001589,2]
[357094806,1743726637473,-553.8,0.00015958,2]
[357094808,1743726637482,-500.0,0.00015958,2]
[357094809,1743726637492,-500.0,0.00015958,2]
[357094810,1743726637502,-544.41,0.00015959,2]
[357094811,1743726637512,-500.0,0.00015959,2]
[357094812,1743726637522,-500.0,0.00015959,2]
[357094813,1743726637532,-724.26,0.00015959,2]
[357094814,1743726637543,-500.0,0.00015959,2]
[357094816,1743726637553,-816.88,0.00015959,2]
[357094817,1743726637563,-762.72,0.00015959,2]
[357094818,1743726637572,-500.0,0.00015959,2]
[357094819,1743726637582,-500.0,0.00015959,2]
[357094821,1743726637592,-536.37,0.00015959,2]
[357094823,1743726637602,-500.0,0.00015959,2]
[357094825,1743726637612,-619.2994449,0.0001596,2]
[357094827,1743726637621,-500.0,0.0001596,2]
[357094828,1743726637630,-151.0,0.00015977,2]
[357094829,1743726637640,-1741.38405739,0.00016,2]
[357094831,1743726637649,-553.8,0.00016232,2]
[357094832,1743726637659,-500.0,0.00016232,2]
[357094833,1743726637668,-500.0,0.00016232,2]
[357094834,1743726637678,-544.41,0.00016233,2]
[357094835,1743726637688,-724.26,0.00016233,2]
[357094836,1743726637698,-500.0,0.00016233,2]
[357094837,1743726637707,-816.88,0.00016233,2]
[357094838,1743726637716,-762.72,0.00016233,2]
[357094839,1743726637726,-500.0,0.00016233,2]
[357094840,1743726637736,-536.37,0.00016233,2]
[357094841,1743726637745,-500.0,0.00016234,2]
[357094842,1743726637755,-268.64,0.00016438,2]
[357094843,1743726637764,-500.0,0.00016438,2]
[357094844,1743726637774,-481.61895115,0.00016438,2]
[357094845,1743726637784,-1200.0,0.00016438,2]
[357094846,1743726637794,-2076.1872201,0.00016438,2]
[357094847,1743726637803,-553.8,0.00016506,2]
[357094848,1743726637813,-500.0,0.00016506,2]
[357094849,1743726637823,-500.0,0.00016506,2]
[357094851,1743726637832,-544.41,0.00016507,2]
[357094852,1743726637842,-724.26,0.00016507,2]
[357094854,1743726637852,-500.0,0.00016507,2]
[357094855,1743726637861,-816.88,0.00016507,2]
[357094856,1743726637871,-762.72,0.00016507,2]
[357094857,1743726637881,-500.0,0.00016507,2]
[357094859,1743726637890,-536.37,0.00016507,2]
[357094860,1743726637900,-500.0,0.00016508,2]
[357094861,1743726637909,-160.0,0.00016561,2]
[357094862,1743726637918,-419.04650234,0.00016561,2]
[357094863,1743726637928,-781.25,0.00016561,2]
[357094864,1743726637937,-160.0,0.00016561,2]
[357094866,1743726637946,-160.0,0.00016561,2]
[357094867,1743726637955,-9927.50816075,0.00016561,2]
[357094869,1743726637965,-553.8,0.0001678,2]
[357094870,1743726637976,-500.0,0.0001678,2]
[357094871,1743726637986,-500.0,0.0001678,2]